[Event "POL-chT 2nd League Juniors 2020"]
[Site "Sypniewo"]
[Date "2020.10.30"]
[Round "9.21"]
[White "Duda, Leon"]
[Black "Wieckowski, Michal"]
[Result "1-0"]
[ECO "B76"]
[WhiteElo "1388"]
[BlackElo "1494"]
[Annotator "NA RC"]
[PlyCount "75"]
[EventDate "2020.10.23"]
[EventType "team-tourn"]
[EventCountry "POL"]
[SourceTitle "playchess.com"]
[Source "ChessBase"]
[SourceQuality "1"]
[TimeControl "5400+30"]

1. e4 {[%emt 0:00:00]} c5 {[%emt 0:00:00]} 2. Nf3 {[%emt 0:00:00]} d6 {[%emt 0:00:00]} 3. d4 {[%emt 0:00:00]} cxd4 {[%emt 0:00:00]} 4. Nxd4 {[%emt 0:00:00]} Nf6 {[%emt 0:00:00]} 5. Nc3 {[%emt 0:00:00]} g6 {[%emt 0:00:13]} 6. Be3 {[%emt 0:00:00]} Bg7 {[%emt 0:00:10]} 7. f3 {[%emt 0:00:00]} O-O {[%emt 0:00:25]} 8. Qd2 {[%emt 0:01:06]} Nc6 {[%emt 0:00:52]} 9. O-O-O Nxd4 {[%emt 0:02:40]} 10. Bxd4 {[%emt 0:00:34]} Be6 {[%emt 0:01:06]} 11. g4 {[%emt 0:09:03]} Qa5 {[%emt 0:00:53]} 12. a3 {[%emt 0:07:26]} Rfc8 {[%emt 0:02:29]} 13. h4 {[%emt 0:05:31]} h5 {[%emt 0:03:12]} 14. gxh5 {[%emt 0:04:53]} Nxh5 {[%emt 0:00:50]} 15. Bxg7 {[%emt 0:00:14]} Kxg7 {[%emt 0:00:08]} 16. Be2 Qe5 {[%emt 0:27:46]} 17. Kb1 {[%emt 0:09:22]} Rc5 {[%emt 0:12:24]} 18. Bd3 {[%emt 0:11:36]} Nf4 {[%emt 0:14:41]} 19. Rdg1 {[%emt 0:02:06]} f6 {[%emt 0:03:26]} 20. Ne2 {[%emt 0:02:36]} Nxe2 {[%emt 0:00:47]} 21. Qxe2 {[%emt 0:00:16]} b5 {[%emt 0:03:41]} 22. Qe3 {[%emt 0:04:23]} Qh5 {[%emt 0:10:28]} 23. Rh2 {[%emt 0:05:13]} Bf7 {[%emt 0:05:53]} 24. f4 {[%emt 0:00:41]} e5 {[%emt 0:01:23]} 25. f5 {[%emt 0:06:27]} Rg8 26. Be2 {[%emt 0:16:57]} Qh6 {[%emt 0:05:34]} 27. Qd3 {[%emt 0:00:49]} d5 {[%emt 0:02:07]} 28. fxg6 {[%emt 0:01:30]} Be6 {[%emt 0:01:24]} 29. h5 {[%emt 0:03:56]} Rgc8 30. Bg4 dxe4 {[%emt 0:01:55]} 31. Qxe4 {[%emt 0:01:52]} Rc4 {[%emt 0:00:00]} 32. Qf3 {[%emt 0:00:30]} Bxg4 {[%emt 0:00:16]} 33. Rxg4 {[%emt 0:00:30]} Rxg4 {[%emt 0:00:30]} 34. Qxg4 {[%emt 0:00:30]} Qf4 {[%emt 0:00:30]} 35. Qe6 {[%emt 0:00:30]} Rc7 36. h6+ {[%emt 0:03:04]} Kxg6 {[%emt 0:01:00]} 37. Rg2+ {[%emt 0:00:14]} Kxh6 {[%emt 0:01:10]} 38. Qh3+ {[%emt 0:00:14]} 1-0

[Event "POL-chT 2nd League Juniors 2020"]
[Site "Sypniewo"]
[Date "2020.10.30"]
[Round "9.23"]
[White "Kukula, Klara"]
[Black "Tarka, Aleksandra"]
[Result "1/2-1/2"]
[ECO "B40"]
[WhiteElo "1232"]
[BlackElo "1676"]
[Annotator "NA RC"]
[PlyCount "69"]
[EventDate "2020.10.23"]
[EventType "team-tourn"]
[EventCountry "POL"]
[SourceTitle "playchess.com"]
[Source "ChessBase"]
[SourceQuality "1"]
[TimeControl "5400+30"]

1. e4 {[%emt 0:00:00]} c5 {[%emt 0:00:00]} 2. Nf3 {[%emt 0:00:00]} e6 {[%emt 0:00:00]} 3. d4 {[%emt 0:00:00]} cxd4 {[%emt 0:00:00]} 4. Nxd4 {[%emt 0:00:00]} Nf6 {[%emt 0:00:11]} 5. Nc3 {[%emt 0:01:22]} Nc6 {[%emt 0:00:10]} 6. a3 {[%emt 0:12:08]} Be7 {[%emt 0:01:49]} 7. Be2 {[%emt 0:00:25]} O-O {[%emt 0:00:48]} 8. O-O {[%emt 0:00:09]} a6 {[%emt 0:16:45]} 9. Be3 Qc7 {[%emt 0:10:29]} 10. h3 {[%emt 0:16:30]} d6 {[%emt 0:16:56]} 11. Bf3 {[%emt 0:04:37]} Ne5 {[%emt 0:05:49]} 12. Be2 {[%emt 0:16:39]} Bd7 {[%emt 0:11:46]} 13. Nf3 {[%emt 0:09:54]} Rfd8 {[%emt 0:09:46]} 14. Nxe5 {[%emt 0:08:30]} dxe5 {[%emt 0:00:06]} 15. Bd3 {[%emt 0:00:58]} Bc6 {[%emt 0:03:46]} 16. Qe2 {[%emt 0:02:46]} b5 {[%emt 0:03:07]} 17. f3 {[%emt 0:03:56]} Nd7 {[%emt 0:02:21]} 18. Rfd1 {[%emt 0:02:09]} Nc5 {[%emt 0:03:41]} 19. Rab1 {[%emt 0:03:02]} Bb7 {[%emt 0:02:03]} 20. Rbc1 {[%emt 0:02:05]} Rac8 {[%emt 0:03:58]} 21. Na2 {[%emt 0:02:35]} Nxd3 {[%emt 0:05:06]} 22. Rxd3 {[%emt 0:00:14]} Rxd3 {[%emt 0:00:45]} 23. Qxd3 {[%emt 0:00:06]} Rd8 {[%emt 0:01:24]} 24. Qe2 {[%emt 0:00:14]} Bc5 {[%emt 0:00:24]} 25. Bxc5 {[%emt 0:00:38]} Qxc5+ {[%emt 0:00:04]} 26. Qf2 {[%emt 0:01:40]} Qc4 {[%emt 0:00:36]} 27. b3 {[%emt 0:00:49]} Qd4 {[%emt 0:01:03]} 28. Kf1 {[%emt 0:07:39]} Kf8 {[%emt 0:00:33]} 29. Nb4 {[%emt 0:01:23]} Qxf2+ {[%emt 0:00:32]} 30. Kxf2 {[%emt 0:00:06]} f6 {[%emt 0:00:30]} 31. Ke2 {[%emt 0:00:28]} Ke7 {[%emt 0:00:22]} 32. Nd3 {[%emt 0:00:17]} Rc8 {[%emt 0:00:31]} 33. Nb2 {[%emt 0:01:03]} Kd6 {[%emt 0:00:33]} 34. c4 {[%emt 0:00:07]} f5 {[%emt 0:00:33]} 35. Rd1+ {[%emt 0:00:32]} 1/2-1/2

[Event "POL-chT 2nd League Juniors 2020"]
[Site "Sypniewo"]
[Date "2020.10.30"]
[Round "9.24"]
[White "Pastuszko, Katarzyna"]
[Black "Bialek, Alicja"]
[Result "0-1"]
[ECO "B32"]
[WhiteElo "1251"]
[BlackElo "1457"]
[Annotator "NA RC"]
[PlyCount "86"]
[EventDate "2020.10.23"]
[EventType "team-tourn"]
[EventCountry "POL"]
[SourceTitle "playchess.com"]
[Source "ChessBase"]
[SourceQuality "1"]
[TimeControl "5400+30"]

1. e4 {[%emt 0:00:00]} c5 {[%emt 0:00:00]} 2. Nf3 {[%emt 0:00:00]} Nc6 {[%emt 0:00:00]} 3. d4 {[%emt 0:00:09]} cxd4 {[%emt 0:00:00]} 4. Nxd4 {[%emt 0:00:18]} e5 {[%emt 0:00:00]} 5. Nb5 {[%emt 0:01:44]} a6 {[%emt 0:00:00]} 6. Nd6+ {[%emt 0:01:54]} Bxd6 {[%emt 0:00:18]} 7. Qxd6 {[%emt 0:00:41]} Qe7 {[%emt 0:00:03]} 8. Qc7 {[%emt 0:03:48]} d5 {[%emt 0:00:12]} 9. Qxe7+ {[%emt 0:03:46]} Ngxe7 {[%emt 0:00:08]} 10. Bd3 {[%emt 0:08:27]} Nb4 {[%emt 0:01:14]} 11. a3 {[%emt 0:08:50]} Nxd3+ {[%emt 0:02:09]} 12. cxd3 {[%emt 0:01:12]} d4 13. O-O {[%emt 0:04:23]} O-O {[%emt 0:15:58]} 14. f4 {[%emt 0:08:21]} f6 {[%emt 0:10:27]} 15. f5 {[%emt 0:02:39]} a5 {[%emt 0:03:46]} 16. a4 {[%emt 0:04:35]} Bd7 {[%emt 0:00:05]} 17. b3 {[%emt 0:08:04]} b5 {[%emt 0:00:55]} 18. Ba3 {[%emt 0:02:23]} Rfe8 {[%emt 0:07:52]} 19. Bxe7 {[%emt 0:03:15]} Rxe7 {[%emt 0:00:18]} 20. Rc1 {[%emt 0:02:55]} bxa4 {[%emt 0:01:03]} 21. bxa4 {[%emt 0:00:50]} Rc8 {[%emt 0:00:23]} 22. Rxc8+ {[%emt 0:03:21]} Bxc8 {[%emt 0:00:03]} 23. Na3 {[%emt 0:03:16]} Ba6 {[%emt 0:02:33]} 24. Nb5 {[%emt 0:03:03]} Rb7 {[%emt 0:03:38]} 25. Rb1 {[%emt 0:13:55]} Kf8 {[%emt 0:01:12]} 26. Kf2 {[%emt 0:00:49]} Ke7 {[%emt 0:01:20]} 27. Ke2 {[%emt 0:00:55]} Bxb5 {[%emt 0:00:58]} 28. axb5 {[%emt 0:01:26]} Kd6 {[%emt 0:00:10]} 29. Kd2 {[%emt 0:00:35]} Kc5 {[%emt 0:00:30]} 30. b6 {[%emt 0:00:24]} Rxb6 {[%emt 0:00:24]} 31. Rc1+ {[%emt 0:01:15]} Kd6 {[%emt 0:00:09]} 32. Rc2 {[%emt 0:02:48]} Rb1 {[%emt 0:00:55]} 33. Ke2 {[%emt 0:01:04]} a4 {[%emt 0:01:59]} 34. Rc8 {[%emt 0:02:58]} a3 {[%emt 0:02:08]} 35. Ra8 {[%emt 0:01:57]} Rb2+ {[%emt 0:00:07]} 36. Kf3 {[%emt 0:00:44]} a2 {[%emt 0:00:08]} 37. h4 {[%emt 0:00:44]} Rd2 {[%emt 0:00:23]} 38. g4 {[%emt 0:00:35]} Rxd3+ {[%emt 0:00:33]} 39. Ke2 {[%emt 0:00:18]} Re3+ {[%emt 0:00:17]} 40. Kd2 {[%emt 0:00:13]} Rxe4 {[%emt 0:00:12]} 41. Rxa2 {[%emt 0:00:16]} Rxg4 {[%emt 0:00:07]} 42. Ra7 {[%emt 0:00:19]} Rxh4 {[%emt 0:00:30]} 43. Rxg7 {[%emt 0:00:28]} Rh5 {[%emt 0:00:39]} 0-1